fUST/lending_fUST_20240306
["ID","MTS","AMOUNT","RATE_DAILY","PERIOD"]
[317141974,1709692243711,-157.35101784,0.00023056,3]
[317141985,1709692243815,-355.14817436,0.00023056,3]
[317141987,1709692243826,-586.26079108,0.0002307,3]
[317141989,1709692243836,-7977.72299142,0.00023087,7]
[317141991,1709692243845,-500.0,0.00023123,2]
[317141993,1709692243854,-500.0,0.00023123,2]
[317141995,1709692243863,-500.0,0.00023123,2]
[317141997,1709692243872,-500.0,0.00023123,2]
[317141999,1709692243884,-500.0,0.00023123,2]
[317142001,1709692243893,-202.66494297,0.00023123,2]
[317142003,1709692243902,-500.0,0.00023123,2]
[317142005,1709692243913,-453.29276655,0.00023123,2]
[317142007,1709692243922,-500.0,0.00023123,2]
[317142009,1709692243932,-500.0,0.00023123,2]
[317142011,1709692243941,-249.70708024,0.00023123,2]
[317142013,1709692243950,-500.0,0.00023123,2]
[317142015,1709692243959,-500.0,0.00023123,2]
[317142017,1709692243968,-500.0,0.00023123,2]
[317142019,1709692243977,-500.0,0.00023123,2]
[317142021,1709692243986,-500.0,0.00023123,2]
[317142023,1709692243995,-500.0,0.00023123,2]
[317142025,1709692244004,-500.0,0.00023123,2]
[317142027,1709692244013,-500.0,0.00023123,2]
[317142029,1709692244022,-500.0,0.00023123,2]
[317142031,1709692244031,-500.0,0.00023123,2]
[317142033,1709692244039,-500.0,0.00023123,2]
[317142035,1709692244048,-36103.64788734,0.00023124,5]
[317142036,1709692244058,-203.58000017,0.00023124,2]
[317142039,1709692244067,-11297.45753518,0.00023124,5]
[317142040,1709692244076,-6176.32405378,0.00023124,5]
[317142043,1709692244086,-5000.0,0.00023124,7]
[317142045,1709692244095,-2256.40450433,0.00023124,2]
[317142046,1709692244104,-2640.22584893,0.00023125,2]
[317142048,1709692244113,-3178.28600262,0.00023125,3]
[317142050,1709692244122,-3492.65753186,0.00023186,2]
[317142053,1709692244133,-500.0,0.00023186,2]
[317142055,1709692244143,-500.0,0.00023186,2]
[317142057,1709692244152,-500.0,0.00023186,2]
[317142059,1709692244161,-298.75947733,0.00023186,2]
[317142061,1709692244170,-4154.497221,0.00023187,2]
[317142062,1709692244179,-3092.104159,0.00023187,2]
[317142065,1709692244189,-2785.58796544,0.00023187,2]
[317142067,1709692244198,-325.89551973,0.00023187,2]
[317142069,1709692244207,-1306.06654808,0.00023187,2]
[317142071,1709692244216,-1306.06654808,0.00023187,2]
[317142073,1709692244226,-1306.06654808,0.00023187,2]
[317142074,1709692244235,-1306.06654808,0.00023187,2]
[317142076,1709692244244,-1306.06654808,0.00023187,2]
[317142078,1709692244253,-1306.06654808,0.00023187,2]
[317142080,1709692244261,-1306.06654808,0.00023187,2]
[317142082,1709692244271,-1306.06654808,0.00023187,2]
[317142085,1709692244282,-1306.06654808,0.00023187,2]
[317142086,1709692244291,-1306.06654808,0.00023187,2]
[317142088,1709692244300,-1306.06654808,0.00023187,2]
[317142090,1709692244309,-1306.06654808,0.00023187,2]
[317142093,1709692244319,-1306.06654808,0.00023187,2]
[317142095,1709692244328,-1306.06654808,0.00023187,2]
[317142096,1709692244337,-1306.06654808,0.00023187,2]
[317142098,1709692244346,-1306.06654808,0.00023187,2]
[317142100,1709692244355,-1306.06654808,0.00023187,2]
[317142102,1709692244365,-1306.06654808,0.00023187,2]
[317142105,1709692244374,-1306.06654808,0.00023187,2]
[317142107,1709692244388,-1306.06,0.00023187,2]
[317142109,1709692244397,-5224.26619234,0.00023187,2]
[317142111,1709692244406,-5224.26619234,0.00023187,2]
[317142113,1709692244415,-5224.26619234,0.00023187,2]
[317142114,1709692244424,-5224.26619234,0.00023187,2]
[317142117,1709692244434,-5224.26619234,0.00023187,2]
[317142119,1709692244443,-5224.26619234,0.00023187,2]
[317142121,1709692244453,-5224.26619234,0.00023187,2]
[317142123,1709692244462,-5224.26619234,0.00023187,2]
[317142124,1709692244471,-5224.26619234,0.00023187,2]
[317142126,1709692244480,-5224.26619234,0.00023187,2]
[317142128,1709692244490,-5224.26619234,0.00023187,2]
[317142130,1709692244499,-5224.26619234,0.00023187,2]
[317142132,1709692244508,-5224.26619234,0.00023187,2]
[317142135,1709692244517,-5224.26619234,0.00023187,2]
[317142137,1709692244527,-5224.26619234,0.00023187,2]
[317142138,1709692244537,-5224.26619234,0.00023187,2]
[317142140,1709692244546,-5224.26619234,0.00023187,2]
[317142142,1709692244555,-5224.26619234,0.00023187,2]
[317142144,1709692244564,-5224.26619234,0.00023187,2]
[317142146,1709692244573,-5224.26,0.00023187,2]
[317142148,1709692244582,-771.85725808,0.00023187,2]
[317142150,1709692244591,-771.85725808,0.00023187,2]
[317142153,1709692244600,-771.85725808,0.00023187,2]
[317142155,1709692244609,-771.85725808,0.00023187,2]
[317142156,1709692244618,-771.85725808,0.00023187,2]
[317142158,1709692244630,-771.85725808,0.00023187,2]
[317142161,1709692244640,-771.85725808,0.00023187,2]
[317142163,1709692244650,-771.85725808,0.00023187,2]
[317142165,1709692244660,-771.85725808,0.00023187,2]
[317142167,1709692244669,-771.85725808,0.00023187,2]
[317142169,1709692244678,-771.85725808,0.00023187,2]
[317142171,1709692244687,-771.85725808,0.00023187,2]
[317142173,1709692244696,-771.85725808,0.00023187,2]
[317142175,1709692244705,-771.85725808,0.00023187,2]
[317142176,1709692244715,-771.85725808,0.00023187,2]
[317142179,1709692244724,-771.85725808,0.00023187,2]
[317142181,1709692244734,-771.85725808,0.00023187,2]
[317142182,1709692244743,-771.85725808,0.00023187,2]
[317142184,1709692244755,-771.85725808,0.00023187,2]
[317142186,1709692244764,-771.85,0.00023187,2]
[317142188,1709692244774,-3087.42903231,0.00023187,2]
[317142190,1709692244783,-3087.42903231,0.00023187,2]
[317142192,1709692244793,-3087.42903231,0.00023187,2]
[317142194,1709692244803,-3087.42903231,0.00023187,2]
[317142196,1709692244812,-3087.42903231,0.00023187,2]
[317142198,1709692244821,-3087.42903231,0.00023187,2]
[317142200,1709692244832,-3087.42903231,0.00023187,2]
[317142202,1709692244841,-3087.42903231,0.00023187,2]
[317142204,1709692244850,-3087.42903231,0.00023187,2]
[317142206,1709692244859,-3087.42903231,0.00023187,2]
[317142208,1709692244868,-3087.42903231,0.00023187,2]
[317142211,1709692244879,-3087.42903231,0.00023187,2]
[317142212,1709692244889,-2764.00345653,0.00023187,2]
[317142215,1709692244902,-323.42557578,0.00023187,2]
[317142217,1709692244911,-3087.42903231,0.00023187,2]
[317142219,1709692244920,-3087.42903231,0.00023187,2]
[317142221,1709692244929,-3087.42903231,0.00023187,2]
[317142223,1709692244937,-3087.42903231,0.00023187,2]
[317142225,1709692244946,-3087.42903231,0.00023187,2]
[317142227,1709692244955,-3087.42903231,0.00023187,2]
[317142229,1709692244964,-3087.42,0.00023187,2]
[317142231,1709692244973,-194.58128134,0.00023187,2]
[317142233,1709692244982,-194.58128134,0.00023187,2]
[317142235,1709692244991,-194.58,0.00023187,2]
[317142237,1709692245000,-153.19834409,0.00023187,2]
[317142239,1709692245009,-153.19834409,0.00023187,2]
[317142241,1709692245018,-153.19834409,0.00023187,2]
[317142243,1709692245027,-153.19834409,0.00023187,2]
[317142245,1709692245036,-153.19834409,0.00023187,2]
[317142247,1709692245046,-153.19834409,0.00023187,2]
[317142249,1709692245055,-153.19834409,0.00023187,2]
[317142251,1709692245063,-153.19834409,0.00023187,2]
[317142253,1709692245072,-153.19834409,0.00023187,2]
[317142255,1709692245081,-153.19,0.00023187,2]
[317142257,1709692245090,-306.39668819,0.00023187,2]
[317142259,1709692245100,-306.39668819,0.00023187,2]
[317142261,1709692245109,-306.39668819,0.00023187,2]
[317142263,1709692245117,-306.39668819,0.00023187,2]
[317142265,1709692245126,-306.39668819,0.00023187,2]
[317142266,1709692245136,-306.39668819,0.00023187,2]
[317142268,1709692245147,-306.39668819,0.00023187,2]
[317142270,1709692245156,-306.39668819,0.00023187,2]
[317142272,1709692245164,-306.39668819,0.00023187,2]
[317142274,1709692245173,-306.39668819,0.00023187,2]
[317142276,1709692245183,-306.39668819,0.00023187,2]
[317142278,1709692245192,-306.39668819,0.00023187,2]
[317142280,1709692245201,-306.39668819,0.00023187,2]
[317142282,1709692245210,-306.39668819,0.00023187,2]
[317142284,1709692245219,-306.39668819,0.00023187,2]
[317142286,1709692245228,-306.39668819,0.00023187,2]
[317142288,1709692245237,-306.39668819,0.00023187,2]
[317142290,1709692245246,-306.39668819,0.00023187,2]
[317142292,1709692245255,-306.39668819,0.00023187,2]
[317142294,1709692245264,-306.39,0.00023187,2]
[317142296,1709692245273,-325.89551964,0.00023266,2]
[317142298,1709692245282,-19500.66901859,0.00023284,2]
[317142300,1709692245291,-323.21095752,0.00023285,2]
[317142302,1709692245300,-155.64452519,0.00023285,2]
[317142304,1709692245309,-264.14255877,0.00023285,2]
[317142306,1709692245319,-244.21595388,0.00023285,2]
[317142308,1709692245328,-358.44831287,0.00023285,2]
[317142310,1709692245336,-446.7685975,0.00023285,2]
[317142312,1709692245346,-247.7333838,0.00023285,2]
[317142314,1709692245355,-286.56262958,0.00023285,2]
[317142317,1709692245365,-263.02396415,0.00023285,7]
[317142318,1709692245374,-1786.64263775,0.00023285,2]
[317142464,1709692246948,-42.32007816,0.00023056,3]
[317146426,1709692470903,200.0,0.00023804,120]
[317146440,1709693145328,-214.95418178,0.0002108,2]
[317146448,1709693368107,-3058.77,0.0001994,2]
[317146449,1709693374105,-1473.39823279,0.00019939,2]
[317146450,1709693374131,-9441.23,0.0001994,2]
[317146451,1709693374153,-12500.0,0.0001994,2]
[317146452,1709693374175,-12500.0,0.0001994,2]
[317146453,1709693374198,-12500.0,0.0001994,2]
[317146454,1709693374219,-8920.13089753,0.0001994,2]
[317146455,1709693374248,-3579.86910247,0.0001994,2]
[317146456,1709693374366,-12500.0,0.0001994,2]
[317146457,1709693374387,-12500.0,0.0001994,2]
[317146458,1709693374408,-12500.0,0.0001994,2]
[317146459,1709693374429,-12500.0,0.0001994,2]
[317146460,1709693374450,-12500.0,0.0001994,2]
[317146461,1709693374471,-154.98450155,0.00020864,2]
[317146462,1709693374492,-1320.36523036,0.00020864,2]
[317146463,1709693374514,-217.15035609,0.00020867,2]
[317146464,1709693374548,4452.48,0.0001994,2]
[317146465,1709693376755,6311.66080953,0.0001994,2]
[317146466,1709693394277,267.05345433,0.000189,2]
[317146508,1709693432155,-2080.56085489,0.0001994,2]
[317146509,1709693432168,-4107.77833558,0.0001994,2]
[317146510,1709693432179,-4290.52658832,0.0001994,2]
[317146511,1709693432189,-3500.6159926,0.0001994,2]
[317146512,1709693432200,-4708.85741908,0.0001994,2]
[317146513,1709693432212,-315.56511995,0.00021086,2]
[317146514,1709693432221,-1273.08620036,0.00023,3]
[317146515,1709693432230,-154.58055665,0.00023056,3]
[317146516,1709693432239,-153.0,0.000231,2]
[317146517,1709693432248,-306.0,0.000231,2]
[317146518,1709693432256,-200.8478084,0.000231,2]
[317146519,1709693432265,-306.0,0.000231,2]
[317146520,1709693432274,-315.4894416,0.000231,2]
[317146521,1709693432283,-12719.90645321,0.000231,2]
[317146574,1709693439016,-2156.50707505,0.000231,2]
[317146576,1709693439028,-603.12900096,0.000231,2]
[317146584,1709693439096,-34520.45747078,0.000231,2]
[317146586,1709693439105,-193.87,0.00023117,2]
[317146587,1709693439118,-161.47697406,0.00023117,2]
[317146589,1709693439127,-500.0,0.00023117,2]
[317146591,1709693439136,-472.18967558,0.00023117,2]
[317146593,1709693439146,-4283.21599871,0.00023118,5]
[317146595,1709693439155,-1284.96479961,0.00023118,2]
[317146597,1709693439166,-4797.18050227,0.00023118,2]
[317146600,1709693439175,-5000.0,0.00023118,2]
[317146603,1709693439184,-50000.0,0.00023118,2]
[317146605,1709693439193,-50000.0,0.00023118,2]
[317146607,1709693439203,-60301.05704024,0.00023118,2]
[317146609,1709693439213,-19500.66901859,0.00023184,2]
[317146611,1709693439223,-500.0,0.00023186,2]
[317146613,1709693439232,-500.0,0.00023186,2]
[317146615,1709693439241,-202.95732377,0.00023186,2]
[317146617,1709693439252,-298.58718422,0.00023186,2]
[317146619,1709693439261,-500.0,0.00023186,2]
[317146621,1709693439270,-293.30596773,0.00023187,2]
[317146623,1709693439278,-1649.07461006,0.00023187,2]
[317146625,1709693439287,-186528.81452825,0.00023187,2]
[317146626,1709693439296,-984.80399247,0.00023187,2]
[317146627,1709693439305,-984.80399247,0.00023187,2]
[317146628,1709693439315,-984.80399247,0.00023187,2]
[317146629,1709693439323,-984.80399247,0.00023187,2]
[317146630,1709693439335,-984.80399247,0.00023187,2]
[317146631,1709693439343,-984.80399247,0.00023187,2]
[317146632,1709693439353,-984.80399247,0.00023187,2]
[317146633,1709693439362,-984.80399247,0.00023187,2]
[317146634,1709693439371,-984.80399247,0.00023187,2]
[317146635,1709693439380,-984.80399247,0.00023187,2]
[317146636,1709693439389,-984.80399247,0.00023187,2]
[317146637,1709693439397,-984.80399247,0.00023187,2]
[317146638,1709693439406,-984.80399247,0.00023187,2]
[317146639,1709693439415,-984.80399247,0.00023187,2]
[317146640,1709693439424,-984.80399247,0.00023187,2]
[317146641,1709693439432,-984.80399247,0.00023187,2]
[317146642,1709693439440,-984.80399247,0.00023187,2]
[317146643,1709693439449,-984.80399247,0.00023187,2]
[317146644,1709693439458,-984.80399247,0.00023187,2]
[317146645,1709693439467,-984.8,0.00023187,2]
[317146646,1709693439476,-3939.21596986,0.00023187,2]
[317146647,1709693439485,-3939.21596986,0.00023187,2]
[317146648,1709693439494,-3939.21596986,0.00023187,2]
[317146649,1709693439503,-3939.21596986,0.00023187,2]
[317146650,1709693439513,-3939.21596986,0.00023187,2]
[317146651,1709693439521,-3939.21596986,0.00023187,2]
[317146652,1709693439530,-3939.21596986,0.00023187,2]
[317146654,1709693439538,-3939.21596986,0.00023187,2]
[317146655,1709693439547,-3939.21596986,0.00023187,2]
[317146656,1709693439556,-3939.21596986,0.00023187,2]
[317146658,1709693439565,-3939.21596986,0.00023187,2]
[317146660,1709693439574,-3939.21596986,0.00023187,2]
[317146662,1709693439585,-3939.21596986,0.00023187,2]
[317146664,1709693439594,-3939.21596986,0.00023187,2]
[317146666,1709693439603,-3939.21596986,0.00023187,2]
[317146668,1709693439612,-3939.21596986,0.00023187,2]
[317146670,1709693439622,-3939.21596986,0.00023187,2]
[317146672,1709693439631,-3939.21596986,0.00023187,2]
[317146674,1709693439640,-3939.21596986,0.00023187,2]
[317146676,1709693439650,-3939.21,0.00023187,2]
[317146678,1709693439659,-228.9928759,0.00023187,2]
[317146680,1709693439668,-228.9928759,0.00023187,2]
[317146682,1709693439678,-228.9928759,0.00023187,2]
[317146684,1709693439687,-228.9928759,0.00023187,2]
[317146686,1709693439696,-228.9928759,0.00023187,2]
[317146688,1709693439705,-228.9928759,0.00023187,2]
[317146690,1709693439715,-228.9928759,0.00023187,2]
[317146692,1709693439724,-228.9928759,0.00023187,2]
[317146694,1709693439733,-228.9928759,0.00023187,2]
[317146696,1709693439742,-228.9928759,0.00023187,2]
[317146697,1709693439752,-228.9928759,0.00023187,2]
[317146700,1709693439761,-228.9928759,0.00023187,2]
[317146701,1709693439771,-228.9928759,0.00023187,2]
[317146703,1709693439781,-228.9928759,0.00023187,2]
[317146705,1709693439790,-228.9928759,0.00023187,2]
[317146707,1709693439801,-228.9928759,0.00023187,2]
[317146710,1709693439810,-228.9928759,0.00023187,2]
[317146711,1709693439819,-228.9928759,0.00023187,2]
[317146713,1709693439832,-228.9928759,0.00023187,2]
[317146715,1709693439841,-228.99,0.00023187,2]
[317146717,1709693439850,-915.9715036,0.00023187,2]
[317146720,1709693439860,-915.9715036,0.00023187,2]
[317146722,1709693439869,-915.9715036,0.00023187,2]
[317146723,1709693439879,-915.9715036,0.00023187,2]
[317146725,1709693439888,-915.9715036,0.00023187,2]
[317146727,1709693439897,-915.9715036,0.00023187,2]
[317146729,1709693439907,-915.9715036,0.00023187,2]
[317146731,1709693439916,-915.9715036,0.00023187,2]
[317146733,1709693439926,-915.9715036,0.00023187,2]
[317146735,1709693439935,-915.9715036,0.00023187,2]
[317146737,1709693439945,-915.9715036,0.00023187,2]
[317146739,1709693439953,-915.9715036,0.00023187,2]
[317146741,1709693439963,-915.9715036,0.00023187,2]
[317146743,1709693439973,-915.9715036,0.00023187,2]
[317146745,1709693439982,-915.9715036,0.00023187,2]
[317146747,1709693439991,-915.9715036,0.00023187,2]
[317146749,1709693440001,-915.9715036,0.00023187,2]
[317146751,1709693440010,-915.9715036,0.00023187,2]
[317146753,1709693440020,-915.9715036,0.00023187,2]
[317146755,1709693440029,-915.97,0.00023187,2]
[317146757,1709693440039,-194.58128134,0.00023187,2]
[317146759,1709693440048,-194.58128134,0.00023187,2]
[317146761,1709693440058,-194.58,0.00023187,2]
[317146763,1709693440068,-153.19834409,0.00023187,2]
[317146765,1709693440079,-153.19834409,0.00023187,2]
[317146767,1709693440089,-153.19834409,0.00023187,2]
[317146769,1709693440098,-153.19834409,0.00023187,2]
[317146771,1709693440108,-153.19834409,0.00023187,2]
[317146773,1709693440123,-153.19834409,0.00023187,2]
[317146775,1709693440133,-153.19834409,0.00023187,2]
[317146785,1709693440219,-153.19834409,0.00023187,2]
[317146787,1709693440229,-153.19834409,0.00023187,2]
[317146789,1709693440238,-153.19,0.00023187,2]
[317146791,1709693440247,-306.39668819,0.00023187,2]
[317146793,1709693440256,-306.39668819,0.00023187,2]
[317146795,1709693440265,-306.39668819,0.00023187,2]
[317146797,1709693440274,-306.39668819,0.00023187,2]
[317146799,1709693440284,-306.39668819,0.00023187,2]
[317146801,1709693440293,-306.39668819,0.00023187,2]
[317146803,1709693440302,-306.39668819,0.00023187,2]
[317146805,1709693440311,-306.39668819,0.00023187,2]
[317146807,1709693440320,-306.39668819,0.00023187,2]
[317146809,1709693440331,-306.39668819,0.00023187,2]
[317146811,1709693440340,-306.39668819,0.00023187,2]
[317146813,1709693440349,-306.39668819,0.00023187,2]
[317146815,1709693440358,-306.39668819,0.00023187,2]
[317146817,1709693440367,-306.39668819,0.00023187,2]
[317146819,1709693440376,-306.39668819,0.00023187,2]
[317146821,1709693440387,-306.39668819,0.00023187,2]
[317146823,1709693440396,-306.39668819,0.00023187,2]
[317146825,1709693440405,-306.39668819,0.00023187,2]
[317146827,1709693440414,-306.39668819,0.00023187,2]
[317146829,1709693440423,-306.39,0.00023187,2]
[317146831,1709693440432,-153.0,0.000232,2]
[317146833,1709693440441,-293.30596767,0.00023266,2]
[317146835,1709693440452,-652.86502819,0.00023285,2]
[317146837,1709693440461,-403.47015161,0.00023285,2]
[317146839,1709693440470,-3151.07349555,0.00023285,2]
[317146841,1709693440480,-814.58307909,0.00023285,2]
[317146842,1709693440489,-240.08561448,0.00023285,2]
[317146844,1709693440498,-323.21095752,0.00023285,2]
[317146846,1709693440508,-155.64452519,0.00023285,2]
[317146849,1709693440517,-244.21595388,0.00023285,2]
[317146850,1709693440527,-264.14255877,0.00023285,2]
[317146852,1709693440536,-446.7685975,0.00023285,2]
[317146854,1709693440545,-263.02396415,0.00023285,7]
[317146856,1709693440554,-247.7333838,0.00023285,2]
[317146858,1709693440564,-286.56262958,0.00023285,2]
[317146860,1709693440573,-4851.2189258,0.00023285,2]
[317146862,1709693440584,-1260.3095196,0.00023285,2]
[317146864,1709693440594,-155.0,0.00023285,2]
[317146867,1709693440603,-1100.30435863,0.00023285,2]
[317146868,1709693440612,-74380.04607968,0.00023286,2]
[317146870,1709693440621,-415.39860347,0.00023287,3]
[317146872,1709693440631,-500.0,0.00023287,2]
[317146874,1709693440640,-500.0,0.00023287,2]
[317146876,1709693440649,-500.0,0.00023287,2]
[317146878,1709693440658,-500.0,0.00023287,2]
[317146880,1709693440667,-500.0,0.00023287,2]
[317146882,1709693440677,-635.5876635,0.00023287,2]
[317146884,1709693440686,-380.76490317,0.00023287,2]
[317146886,1709693440695,-500.0,0.00023287,2]
[317146888,1709693440704,-500.0,0.00023287,2]
[317146890,1709693440714,-608.5441377,0.00023287,2]
[317146892,1709693440724,-500.0,0.00023287,2]
[317146894,1709693440734,-500.0,0.00023287,2]
[317146896,1709693440743,-500.0,0.00023287,2]
[317146899,1709693440754,-500.0,0.00023287,2]
[317146901,1709693440763,-500.0,0.00023287,2]
[317146903,1709693440773,-500.0,0.00023287,2]
[317146905,1709693440782,-500.0,0.00023287,2]
[317146907,1709693440791,-500.0,0.00023287,2]
[317146909,1709693440800,-500.0,0.00023287,2]
[317146911,1709693440809,-500.0,0.00023287,2]
[317146913,1709693440818,-500.0,0.00023287,2]
[317146915,1709693440828,-500.0,0.00023287,2]
[317146917,1709693440837,-500.0,0.00023287,2]
[317146919,1709693440846,-414.96810622,0.00023287,2]
[317146921,1709693440855,-500.0,0.00023287,2]
[317146923,1709693440864,-369.77931181,0.00023287,2]
[317146924,1709693440873,-500.0,0.00023287,2]
[317146926,1709693440882,-500.0,0.00023287,2]
[317146929,1709693440891,-500.0,0.00023287,2]
[317146931,1709693440901,-500.0,0.00023287,2]
[317146932,1709693440910,-500.8607124,0.00023287,2]
[317146934,1709693440919,-500.0,0.00023287,2]
[317146936,1709693440929,-500.0,0.00023287,2]
[317146938,1709693440937,-500.0,0.00023287,2]
[317146940,1709693440946,-500.0,0.00023287,2]
[317146942,1709693440955,-500.0,0.00023287,2]
[317146944,1709693440964,-500.0,0.00023287,2]
[317146946,1709693440978,-500.0,0.00023287,2]
[317146948,1709693440988,-498.22795125,0.00023287,2]
[317146950,1709693440997,-500.0,0.00023287,2]
[317146952,1709693441006,-500.0,0.00023287,2]
[317146954,1709693441015,-500.0,0.00023287,2]
[317146956,1709693441025,-500.0,0.00023287,2]
[317146958,1709693441034,-500.0,0.00023287,2]
[317146960,1709693441043,-500.0,0.00023287,2]
[317146963,1709693441058,-500.0,0.00023287,2]
[317146965,1709693441071,-500.0,0.00023287,2]
[317146967,1709693441084,-579.83709272,0.00023287,2]
[317146970,1709693441097,-500.0,0.00023287,2]
[317146972,1709693441107,-500.0,0.00023287,2]
[317146974,1709693441119,-532.9207002,0.00023287,2]
[317146977,1709693441132,-501.02342556,0.00023287,2]
[317146979,1709693441146,-504.80569967,0.00023287,2]
[317146981,1709693441158,-500.0,0.00023287,2]
[317146984,1709693441172,-500.0,0.00023287,2]
[317146986,1709693441186,-500.0,0.00023287,2]
[317146988,1709693441199,-181.58627664,0.00023287,2]
[317146990,1709693441212,-255.84389764,0.00023287,2]
[317146993,1709693441223,-500.46159037,0.00023287,2]
[317146995,1709693441236,-500.0,0.00023287,2]
[317146997,1709693441248,-500.0,0.00023287,2]
[317146999,1709693441260,-500.0,0.00023287,2]
[317147002,1709693441272,-372.28959666,0.00023287,2]
[317147004,1709693441284,-298.64095219,0.00023287,2]
[317147006,1709693441295,-500.0,0.00023287,2]
[317147009,1709693441308,-500.0,0.00023287,2]
[317147011,1709693441319,-503.23026719,0.00023287,2]
[317147013,1709693441331,-397.04778329,0.00023287,2]
[317147015,1709693441342,-500.0,0.00023287,2]
[317147017,1709693441355,-500.0,0.00023287,2]
[317147020,1709693441367,-500.0,0.00023287,2]
[317147022,1709693441379,-500.0,0.00023287,2]
[317147024,1709693441391,-500.0,0.00023287,2]
[317147027,1709693441402,-500.0,0.00023287,2]
[317147029,1709693441413,-500.0,0.00023287,2]
[317147031,1709693441424,-500.0,0.00023287,2]
[317147033,1709693441436,-500.0,0.00023287,2]
[317147036,1709693441447,-317.33194368,0.00023287,2]
[317147038,1709693441459,-286.15250319,0.00023287,2]
[317147040,1709693441471,-502.12022041,0.00023287,2]
[317147043,1709693441486,-501.33502304,0.00023287,2]
[317147045,1709693441498,-343.57875641,0.00023287,2]
[317147047,1709693441511,-502.57846069,0.00023287,2]
[317147050,1709693441522,-500.0,0.00023287,2]
[317147052,1709693441532,-500.0,0.00023287,2]
[317147054,1709693441542,-513.51101438,0.00023287,2]
[317147056,1709693441552,-504.08595731,0.00023287,2]
[317147058,1709693441563,-504.88498422,0.00023287,2]
[317147060,1709693441574,-500.52431377,0.00023287,2]
[317147063,1709693441589,-500.0,0.00023287,2]
[317147065,1709693441599,-500.0,0.00023287,2]
[317147067,1709693441611,-500.0,0.00023287,2]
[317147069,1709693441622,-508.03250909,0.00023287,2]
[317147071,1709693441633,-500.0,0.00023287,2]
[317147073,1709693441644,-500.0,0.00023287,2]
[317147076,1709693441654,-500.0,0.00023287,2]
[317147078,1709693441665,-500.0,0.00023287,2]
[317147080,1709693441676,-500.0,0.00023287,2]
[317147082,1709693441688,-500.0,0.00023287,2]
[317147084,1709693441699,-500.0,0.00023287,2]
[317147087,1709693441710,-500.0,0.00023287,2]
[317147089,1709693441720,-500.0,0.00023287,2]
[317147091,1709693441731,-500.0,0.00023287,2]
[317147093,1709693441742,-500.0,0.00023287,2]
[317147095,1709693441752,-561.33360406,0.00023287,2]
[317147098,1709693441764,-500.0,0.00023287,2]
[317147100,1709693441774,-268.74640655,0.00023287,2]
[317147102,1709693441789,-500.0,0.00023287,2]
[317147105,1709693441799,-504.63914315,0.00023287,2]
[317147107,1709693441810,-500.0,0.00023287,2]
[317147109,1709693441820,-503.87326634,0.00023287,2]
[317147111,1709693441833,-399.67792884,0.00023287,2]
[317147113,1709693441843,-500.0,0.00023287,2]
[317147115,1709693441854,-191.9365285,0.00023287,2]
[317147117,1709693441865,-500.0,0.00023287,2]
[317147119,1709693441875,-500.0,0.00023287,2]
[317147122,1709693441886,-500.0,0.00023287,2]
[317147124,1709693441897,-500.0,0.00023287,2]
[317147126,1709693441908,-500.0,0.00023287,2]
[317147128,1709693441919,-500.0,0.00023287,2]
[317147131,1709693441930,-500.0,0.00023287,2]
[317147133,1709693441940,-500.0,0.00023287,2]
[317147135,1709693441950,-500.0,0.00023287,2]
[317147137,1709693441961,-500.0,0.00023287,2]
[317147139,1709693441972,-500.0,0.00023287,2]
[317147141,1709693441983,-564.48433871,0.00023287,2]
[317147143,1709693441994,-285.89632819,0.00023287,2]
[317147146,1709693442006,-500.0,0.00023287,2]
[317147148,1709693442016,-500.0,0.00023287,2]
[317147150,1709693442027,-500.0,0.00023287,2]
[317147152,1709693442038,-500.0,0.00023287,2]
[317147154,1709693442048,-500.0,0.00023287,2]
[317147157,1709693442059,-500.0,0.00023287,2]
[317147159,1709693442070,-708.39,0.00023287,2]
[317147171,1709693442183,-708.39,0.00023287,2]
[317147173,1709693442193,-339.6018,0.00023287,2]
[317147174,1709693442202,-708.39,0.00023287,2]
[317147176,1709693442212,-708.39,0.00023287,2]